fUST/lending_fUST_20250225
["ID","MTS","AMOUNT","RATE_DAILY","PERIOD"]
[354373228,1740461440907,-505.08528196,0.00068493,120]
[354373229,1740461440918,-500.0,0.00068493,120]
[354373230,1740461440927,-500.0,0.00068493,7]
[354373231,1740461440937,-510.70878742,0.00068493,120]
[354373232,1740461440946,-500.0,0.00068493,120]
[354373233,1740461440956,-500.0,0.00068493,120]
[354373234,1740461440965,-500.0,0.00068493,120]
[354373235,1740461440974,-500.71311713,0.00068493,120]
[354373236,1740461440983,-500.0,0.00068493,120]
[354373237,1740461440992,-504.58942517,0.00068493,120]
[354373238,1740461441001,-505.42047916,0.00068493,120]
[354373239,1740461441011,-500.0,0.00068493,120]
[354373240,1740461441021,-502.91504919,0.00068493,120]
[354373241,1740461441030,-500.0,0.00068493,120]
[354373242,1740461441040,-502.48952841,0.00068493,120]
[354373243,1740461441051,-250.0,0.00068493,120]
[354373244,1740461441134,-503.49569395,0.00068493,120]
[354373245,1740461441146,-500.0,0.00068493,120]
[354373246,1740461441156,-500.0,0.00068493,120]
[354373247,1740461441169,-504.12294736,0.00068493,120]
[354373248,1740461441179,-500.0,0.00068493,120]
[354373249,1740461441188,-502.14910373,0.00068493,120]
[354373250,1740461441198,-500.0,0.00068493,120]
[354373251,1740461441208,-500.0,0.00068493,120]
[354373252,1740461441218,-500.0,0.00068493,120]
[354373253,1740461441228,-500.0,0.00068493,120]
[354373254,1740461441238,-500.0,0.00068493,120]
[354373255,1740461441247,-500.0,0.00068493,120]
[354373256,1740461441256,-500.0,0.00068493,120]
[354373257,1740461441266,-500.0,0.00068493,120]
[354373258,1740461441275,-500.0,0.00068493,120]
[354373259,1740461441285,-453.13696538,0.00068493,120]
[354373260,1740461441294,-502.7467375,0.00068493,120]
[354373261,1740461441304,-500.0,0.00068493,120]
[354373262,1740461441313,-500.0,0.00068493,120]
[354373263,1740461441323,-326.04070655,0.00068493,120]
[354373264,1740461441332,-500.0,0.00068493,120]
[354373265,1740461441342,-500.0,0.00068493,120]
[354373266,1740461441351,-500.0,0.00068493,120]
[354373267,1740461441361,-502.22216444,0.00068493,120]
[354373268,1740461441370,-500.0,0.00068493,120]
[354373269,1740461441379,-500.0,0.00068493,120]
[354373270,1740461441388,-500.0,0.00068493,120]
[354373271,1740461441397,-500.0,0.00068493,120]
[354373272,1740461441407,-482.72395975,0.00068493,120]
[354373273,1740461441416,-501.60672053,0.00068493,120]
[354373274,1740461441427,-544.30880192,0.00068493,120]
[354373275,1740461441436,-500.0,0.00068493,120]
[354373276,1740461441446,-500.0,0.00068493,120]
[354373277,1740461441455,-500.0,0.00068493,120]
[354373278,1740461441464,-505.91148077,0.00068493,120]
[354373279,1740461441474,-506.31753928,0.00068493,120]
[354373280,1740461441484,-500.0,0.00068493,120]
[354373281,1740461441493,-505.40613968,0.00068493,120]
[354373282,1740461441502,-500.0,0.00068493,120]
[354373283,1740461441512,-500.0,0.00068493,120]
[354373284,1740461441522,-500.0,0.00068493,120]
[354373285,1740461441532,-356.86498641,0.00068493,120]
[354373286,1740461441542,-500.0,0.00068493,120]
[354373287,1740461441552,-546.06147795,0.00068493,120]
[354373288,1740461441561,-503.57051369,0.00068493,120]
[354373289,1740461441571,-502.38106392,0.00068493,120]
[354373290,1740461441581,-500.0,0.00068493,120]
[354373291,1740461441590,-500.0,0.00068493,120]
[354373292,1740461441600,-500.0,0.00068493,120]
[354373293,1740461441610,-500.0,0.00068493,120]
[354373294,1740461441621,-502.89742499,0.00068493,120]
[354373295,1740461441630,-500.0,0.00068493,120]
[354373296,1740461441641,-500.0,0.00068493,120]
[354373297,1740461441652,-201.19998261,0.00068493,120]
[354373298,1740461441662,-1623.81,0.00068493,120]
[354373299,1740461441673,-500.0,0.00068493,120]
[354373300,1740461441683,-492.32463138,0.00068493,120]
[354373301,1740461441692,-501.50683753,0.00068493,120]
[354373302,1740461441702,-500.0,0.00068493,120]
[354373303,1740461441711,-504.0267173,0.00068493,120]
[354373304,1740461441723,-500.0,0.00068493,120]
[354373305,1740461441733,-502.15425456,0.00068493,120]
[354373306,1740461441743,-500.0,0.00068493,120]
[354373307,1740461441752,-500.0,0.00068493,120]
[354373308,1740461441762,-3001.35,0.00068493,120]
[354373309,1740461441771,-500.0,0.00068493,120]
[354373310,1740461441780,-19601.91606613,0.00068493,7]
[354373311,1740461441789,-500.0,0.00068493,120]
[354373312,1740461441798,-504.16817758,0.00068493,120]
[354373313,1740461441807,-500.0,0.00068493,120]
[354373314,1740461441817,-500.0,0.00068493,120]
[354373315,1740461441826,-500.0,0.00068493,120]
[354373316,1740461441836,-500.0,0.00068493,120]
[354373317,1740461441845,-500.0,0.00068493,120]
[354373318,1740461441854,-500.0,0.00068493,120]
[354373319,1740461441864,-504.03704714,0.00068493,21]
[354373320,1740461441873,-502.40156578,0.00068493,120]
[354373321,1740461441882,-1771.31,0.00068493,120]
[354373322,1740461441891,-500.0,0.00068493,120]
[354373323,1740461441901,-500.0,0.00068493,120]
[354373324,1740461441910,-156.64173577,0.00068493,120]
[354373325,1740461441919,-500.0,0.00068493,120]
[354373326,1740461441929,-500.0,0.00068493,120]
[354373327,1740461441938,-500.0,0.00068493,120]
[354373328,1740461441948,-504.85519085,0.00068493,120]
[354373329,1740461441957,-1338.16,0.00068493,120]
[354373330,1740461441966,-1338.16,0.00068493,120]
[354373331,1740461441976,-1338.16,0.00068493,120]
[354373332,1740461441985,-500.0,0.00068493,120]
[354373333,1740461441994,-504.06115569,0.00068493,120]
[354373334,1740461442004,-678.52,0.00068493,120]
[354373335,1740461442013,-678.52,0.00068493,120]
[354373336,1740461442023,-678.52,0.00068493,120]
[354373337,1740461442032,-500.0,0.00068493,120]
[354373338,1740461442041,-504.52961651,0.00068493,120]
[354373339,1740461442051,-502.93914129,0.00068493,120]
[354373340,1740461442060,-500.0,0.00068493,120]
[354373341,1740461442069,-501.73459121,0.00068493,120]
[354373342,1740461442079,-500.0,0.00068493,120]
[354373343,1740461442088,-500.0,0.00068493,120]
[354373344,1740461442166,-500.0,0.00068493,120]
[354373345,1740461442177,-500.0,0.00068493,120]
[354373346,1740461442186,-500.0,0.00068493,120]
[354373347,1740461442195,-500.0,0.00068493,120]
[354373348,1740461442205,-500.0,0.00068493,120]
[354373349,1740461442214,-500.0,0.00068493,120]
[354373350,1740461442223,-1503.04,0.00068493,120]
[354373351,1740461442232,-505.04333626,0.00068493,120]
[354373352,1740461442241,-1025.63,0.00068493,120]
[354373353,1740461442251,-500.0,0.00068493,120]
[354373354,1740461442260,-500.0,0.00068493,120]
[354373355,1740461442269,-602.24730002,0.00068493,120]
[354373356,1740461442279,-500.0,0.00068493,120]
[354373357,1740461442289,-502.32362287,0.00068493,120]
[354373358,1740461442298,-500.0,0.00068493,120]
[354373359,1740461442307,-767.68,0.00068493,120]
[354373360,1740461442316,-767.68,0.00068493,120]
[354373361,1740461442325,-767.68,0.00068493,120]
[354373362,1740461442335,-505.60920999,0.00068493,120]
[354373363,1740461442344,-500.54865302,0.00068493,120]
[354373364,1740461442354,-500.0,0.00068493,120]
[354373365,1740461442363,-431.4181011,0.00068493,120]
[354373366,1740461442372,-512.81176448,0.00068493,30]
[354373367,1740461442382,-7345.85,0.00068493,120]
[354373368,1740461442391,-500.68181503,0.00068493,120]
[354373369,1740461442401,-500.0,0.00068493,120]
[354373370,1740461442410,-500.0,0.00068493,120]
[354373371,1740461442420,-529.55212305,0.00068493,120]
[354373372,1740461442429,-500.0,0.00068493,2]
[354373373,1740461442439,-500.0,0.00068493,120]
[354373374,1740461442448,-500.0,0.00068493,120]
[354373375,1740461442458,-500.0,0.00068493,120]
[354373376,1740461442467,-299.92183403,0.00068493,120]
[354373377,1740461442478,-500.0,0.00068493,120]
[354373378,1740461442488,-500.0,0.00068493,120]
[354373379,1740461442497,-500.0,0.00068493,120]
[354373380,1740461442506,-500.0,0.00068493,120]
[354373381,1740461442516,-500.0,0.00068493,120]
[354373382,1740461442526,-504.14601908,0.00068493,120]
[354373383,1740461442536,-504.11750272,0.00068493,120]
[354373384,1740461442546,-500.0,0.00068493,120]
[354373385,1740461442556,-500.0,0.00068493,120]
[354373386,1740461442565,-500.0,0.00068493,120]
[354373387,1740461442575,-505.44862535,0.00068493,120]
[354373388,1740461442584,-572.33,0.00068493,120]
[354373389,1740461442594,-511.11039552,0.00068493,120]
[354373390,1740461442603,-503.01550066,0.00068493,120]
[354373391,1740461442613,-500.0,0.00068493,120]
[354373392,1740461442622,-1223.67,0.00068493,120]
[354373393,1740461442633,-500.0,0.00068493,120]
[354373394,1740461442651,-500.0,0.00068493,120]
[354373395,1740461442660,-500.0,0.00068493,120]
[354373396,1740461442671,-500.0,0.00068493,120]
[354373397,1740461442680,-500.0,0.00068493,120]
[354373398,1740461442690,-500.0,0.00068493,120]
[354373399,1740461442700,-500.0,0.00068493,120]
[354373400,1740461442710,-500.79,0.00068493,120]
[354373401,1740461442721,-500.79,0.00068493,120]
[354373402,1740461442730,-500.79,0.00068493,120]
[354373403,1740461442740,-500.0,0.00068493,120]
[354373404,1740461442749,-500.0,0.00068493,120]
[354373405,1740461442759,-631.7537015,0.00068493,120]
[354373406,1740461442768,-500.0,0.00068493,120]
[354373407,1740461442778,-500.0,0.00068493,120]
[354373408,1740461442787,-3740.45,0.00068493,120]
[354373409,1740461442797,-500.0,0.00068493,120]
[354373410,1740461442807,-3740.45,0.00068493,120]
[354373411,1740461442816,-3740.45,0.00068493,120]
[354373412,1740461442826,-500.0,0.00068493,120]
[354373413,1740461442835,-500.0,0.00068493,120]
[354373414,1740461442845,-500.0,0.00068493,120]
[354373415,1740461442854,-500.0,0.00068493,120]
[354373416,1740461442864,-500.0,0.00068493,120]
[354373417,1740461442873,-1503.51,0.00068493,120]
[354373419,1740461442882,-1503.51,0.00068493,120]
[354373421,1740461442892,-500.0,0.00068493,120]
[354373423,1740461442901,-500.0,0.00068493,120]
[354373425,1740461442910,-1503.51,0.00068493,120]
[354373427,1740461442920,-500.39106724,0.00068493,120]
[354373428,1740461442930,-500.0,0.00068493,120]
[354373429,1740461442939,-500.0,0.00068493,120]
[354373430,1740461442948,-500.0,0.00068493,120]
[354373431,1740461442957,-500.0,0.00068493,120]
[354373433,1740461442966,-500.0,0.00068493,120]
[354373435,1740461442975,-501.38127627,0.00068493,120]
[354373436,1740461442984,-501.25177803,0.00068493,120]
[354373437,1740461442993,-500.0,0.00068493,120]
[354373438,1740461443002,-500.0,0.00068493,120]
[354373439,1740461443011,-503.91736698,0.00068493,120]
[354373440,1740461443020,-500.0,0.00068493,120]
[354373441,1740461443030,-500.0,0.00068493,120]
[354373442,1740461443040,-500.0,0.00068493,120]
[354373450,1740461443116,-500.0,0.00068493,120]
[354373451,1740461443126,-501.920652,0.00068493,120]
[354373452,1740461443135,-500.0,0.00068493,120]
[354373453,1740461443145,-500.0,0.00068493,30]
[354373454,1740461443154,-500.0,0.00068493,120]
[354373455,1740461443164,-500.0,0.00068493,120]
[354373456,1740461443174,-500.0,0.00068493,120]
[354373457,1740461443183,-500.0,0.00068493,120]
[354373458,1740461443192,-1227.28,0.00068493,120]
[354373459,1740461443202,-500.0,0.00068493,120]
[354373460,1740461443211,-500.0,0.00068493,120]
[354373461,1740461443220,-500.0,0.00068493,120]
[354373462,1740461443229,-500.0,0.00068493,120]
[354373463,1740461443239,-500.91598207,0.00068493,120]
[354373464,1740461443248,-500.0,0.00068493,120]
[354373465,1740461443257,-500.0,0.00068493,120]
[354373466,1740461443267,-500.0,0.00068493,120]
[354373467,1740461443276,-500.0,0.00068493,120]
[354373468,1740461443286,-500.0,0.00068493,120]
[354373469,1740461443295,-500.0,0.00068493,120]
[354373470,1740461443304,-539.75589813,0.00068493,120]
[354373471,1740461443314,-500.0,0.00068493,120]
[354373472,1740461443324,-500.0,0.00068493,120]
[354373473,1740461443333,-500.0,0.00068493,120]
[354373474,1740461443343,-500.0,0.00068493,120]
[354373475,1740461443353,-587.51,0.00068493,120]
[354373476,1740461443362,-587.51,0.00068493,120]
[354373477,1740461443372,-587.51,0.00068493,120]
[354373478,1740461443382,-500.0,0.00068493,120]
[354373479,1740461443391,-500.0,0.00068493,120]
[354373480,1740461443400,-504.57921129,0.00068493,120]
[354373481,1740461443410,-500.0,0.00068493,120]
[354373482,1740461443421,-6538.62,0.00068493,120]
[354373483,1740461443431,-500.0,0.00068493,120]
[354373484,1740461443441,-500.0,0.00068493,120]
[354373485,1740461443450,-918.44,0.00068493,3]
[354373486,1740461443460,-918.44,0.00068493,3]
[354373487,1740461443470,-918.44,0.00068493,3]
[354373488,1740461443479,-500.77239194,0.00068493,120]
[354373489,1740461443488,-502.38277925,0.00068493,120]
[354373490,1740461443498,-102069.38,0.00068493,7]
[354373491,1740461443507,-1996.48,0.00068493,120]
[354373492,1740461443517,-1996.48,0.00068493,120]
[354373493,1740461443526,-1996.48,0.00068493,120]
[354373494,1740461443536,-503.12519959,0.00068493,120]
[354373495,1740461443545,-500.64424464,0.00068493,120]
[354373496,1740461443555,-500.0,0.00068493,120]
[354373497,1740461443565,-500.0,0.00068493,120]
[354373498,1740461443575,-500.0,0.00068493,120]
[354373499,1740461443584,-500.0,0.00068493,120]
[354373500,1740461443593,-500.0,0.00068493,120]
[354373501,1740461443602,-500.0,0.00068493,120]
[354373502,1740461443611,-500.0,0.00068493,120]
[354373503,1740461443621,-500.0,0.00068493,120]
[354373504,1740461443630,-500.0,0.00068493,120]
[354373505,1740461443641,-500.0,0.00068493,120]
[354373506,1740461443651,-500.0,0.00068493,120]
[354373507,1740461443660,-602.91199993,0.00068493,120]
[354373508,1740461443671,-500.0,0.00068493,120]
[354373509,1740461443681,-500.0,0.00068493,120]
[354373510,1740461443691,-500.0,0.00068493,120]
[354373511,1740461443700,-500.0,0.00068493,120]
[354373512,1740461443709,-500.0,0.00068493,120]
[354373513,1740461443721,-500.0,0.00068493,120]
[354373514,1740461443731,-515.37172911,0.00068493,120]
[354373515,1740461443741,-500.0,0.00068493,120]
[354373517,1740461443750,-500.0,0.00068493,120]
[354373518,1740461443760,-505.13906612,0.00068493,120]
[354373519,1740461443769,-502.46305995,0.00068493,120]
[354373520,1740461443779,-596.49853122,0.00068493,120]
[354373521,1740461443788,-500.0,0.00068493,120]
[354373522,1740461443798,-500.0,0.00068493,120]
[354373523,1740461443808,-500.0,0.00068493,120]
[354373524,1740461443817,-1160.32,0.00068493,120]
[354373525,1740461443827,-1160.32,0.00068493,120]
[354373526,1740461443835,-500.22048649,0.00068493,120]
[354373527,1740461443845,-1160.32,0.00068493,120]
[354373528,1740461443854,-500.0,0.00068493,120]
[354373529,1740461443863,-500.0,0.00068493,120]
[354373530,1740461443873,-501.35418177,0.00068493,120]
[354373531,1740461443882,-503.26088384,0.00068493,120]
[354373532,1740461443892,-503.51991988,0.00068493,120]
[354373533,1740461443902,-500.0,0.00068493,30]
[354373534,1740461443911,-500.0,0.00068493,120]
[354373535,1740461443989,-500.0,0.00068493,30]
[354373536,1740461444000,-500.0,0.00068493,30]
[354373537,1740461444010,-500.0,0.00068493,120]
[354373538,1740461444019,-500.0,0.00068493,120]
[354373539,1740461444029,-500.0,0.00068493,120]
[354373540,1740461444039,-504.29422082,0.00068493,120]
[354373541,1740461444048,-483.89558706,0.00068493,120]
[354373542,1740461444058,-160.15731417,0.000685,15]
[354373543,1740461444068,-296055.10752548,0.000685,2]
[354373544,1740461444362,-500.0,0.00068493,120]
[354373545,1740461444384,-500.0,0.00068493,120]
[354373546,1740461444405,-226.66527584,0.00068493,120]
[354373547,1740461444432,-273.33472416,0.00068493,120]
[354373548,1740461444451,-3297.18564311,0.000685,2]
[354373549,1740461444470,-48428.30683141,0.000685,2]
[354373550,1740461444493,-8199.56,0.000685,30]
[354373551,1740461444513,-5062.70950723,0.0006999,6]
[354373552,1740461444535,-2147.159,0.0007,90]
[354373553,1740461444548,-1909.18,0.0007,30]
[354373554,1740461444570,-4105.18,0.0007,30]
[354373555,1740461444585,-2000.0,0.0007,120]
[354373556,1740461444604,-500.0,0.00072915,120]
[354373557,1740461444618,-500.0,0.00072915,120]
[354373558,1740461444636,-600.0,0.00072915,120]
[354373559,1740461444655,-525.34658901,0.00072915,120]
[354373560,1740461444672,-500.0,0.00072915,120]
[354373561,1740461444692,-500.0,0.00072915,120]
[354373562,1740461444708,-500.0,0.00072915,120]
[354373563,1740461444726,-500.0,0.00072915,120]
[354373564,1740461444742,-500.0,0.00072915,120]
[354373565,1740461444758,-500.0,0.00072915,120]
[354373566,1740461444775,-500.0,0.00072915,120]
[354373567,1740461444792,-500.0,0.00072915,120]
[354373568,1740461444808,-500.0,0.00072915,120]
[354373569,1740461444823,-500.0,0.00072915,120]
[354373570,1740461444838,-1338.16,0.00072915,120]
[354373571,1740461444847,-678.52,0.00072915,120]
[354373572,1740461444857,-429.653048,0.00072915,120]
[354373573,1740461444867,-500.0,0.00072915,120]
[354373574,1740461444876,-282.9344985,0.00072915,120]
[354373575,1740461445111,-484.7455015,0.00072915,120]
[354373576,1740461445121,-500.0,0.00072915,120]
[354373577,1740461445131,-500.0,0.00072915,120]
[354373578,1740461445140,-500.0,0.00072915,120]
[354373579,1740461445150,-500.79,0.00072915,120]
[354373580,1740461445159,-3740.45,0.00072915,120]
[354373581,1740461445169,-500.0,0.00072915,120]
[354373582,1740461445178,-500.0,0.00072915,120]
[354373583,1740461445188,-1503.51,0.00072915,120]
[354373584,1740461445198,-500.0,0.00072915,120]
[354373585,1740461445208,-500.0,0.00072915,120]
[354373586,1740461445217,-500.0,0.00072915,120]
[354373587,1740461445227,-500.0,0.00072915,120]
[354373588,1740461445237,-500.0,0.00072915,120]
[354373589,1740461445246,-500.0,0.00072915,120]
[354373590,1740461445256,-500.0,0.00072915,120]
[354373591,1740461445265,-587.51,0.00072915,120]
[354373592,1740461445275,-500.0,0.00072915,120]
[354373593,1740461445284,-918.44,0.00072915,3]
[354373594,1740461445293,-1996.48,0.00072915,120]
[354373595,1740461445302,-500.0,0.00072915,120]
[354373596,1740461445312,-500.0,0.00072915,120]
[354373597,1740461445323,-500.0,0.00072915,120]
[354373598,1740461445332,-500.0,0.00072915,120]
[354373599,1740461445342,-500.0,0.00072915,120]
[354373600,1740461445351,-1160.32,0.00072915,120]
[354373601,1740461445360,-500.0,0.00072915,30]
[354373602,1740461445370,-500.0,0.00072915,120]
[354373603,1740461445379,-157.96277265,0.00073146,2]
[354373604,1740461445389,-10000.0,0.00074,120]
[354373605,1740461445398,-1000.0,0.00074,120]
[354373606,1740461445408,-5062.70950723,0.0007499,6]
[354373607,1740461445418,-11307.86695649,0.00075,120]
[354373608,1740461445428,-10000.0,0.00075,120]
[354373609,1740461445437,-500.79760629,0.000755,15]
[354373610,1740461445446,-526.09062785,0.00075681,15]
[354373611,1740461445456,-5062.70950723,0.00075989,6]
[354373612,1740461445465,-500.0,0.00075989,120]
[354373613,1740461445474,-500.0,0.00075989,120]
[354373614,1740461445484,-600.0,0.00075989,120]
[354373615,1740461445493,-500.0,0.00075989,120]
[354373616,1740461445503,-510.51602066,0.00075989,120]
[354373617,1740461445512,-500.0,0.00075989,120]
[354373618,1740461445522,-500.0,0.00075989,120]
[354373619,1740461445532,-500.0,0.00075989,120]
[354373620,1740461445542,-500.0,0.00075989,120]
[354373621,1740461445551,-500.0,0.00075989,120]
[354373622,1740461445561,-513.63854233,0.00075989,120]
[354373623,1740461445571,-500.0,0.00075989,120]
[354373624,1740461445581,-500.0,0.00075989,120]
[354373625,1740461445591,-1338.16,0.00075989,120]
[354373626,1740461445600,-678.52,0.00075989,120]
[354373627,1740461445610,-767.68,0.00075989,120]
[354373628,1740461445619,-1000.0,0.00075989,120]
[354373629,1740461445628,-500.0,0.00075989,120]
[354373630,1740461445641,-255.61836283,0.00075989,120]
[354373631,1740461445651,-500.0,0.00075989,120]
[354373632,1740461445661,-500.79,0.00075989,120]
[354373633,1740461445673,-3740.45,0.00075989,120]
[354373634,1740461445683,-513.44913176,0.00075989,120]
[354373635,1740461445692,-500.0,0.00075989,120]
[354373636,1740461445701,-1503.51,0.00075989,120]
[354373637,1740461445711,-500.0,0.00075989,120]
[354373638,1740461445721,-500.0,0.00075989,120]
[354373639,1740461445732,-500.0,0.00075989,120]
[354373640,1740461445742,-500.0,0.00075989,120]
[354373641,1740461445752,-500.0,0.00075989,120]
[354373642,1740461445762,-500.0,0.00075989,120]
[354373643,1740461445772,-500.0,0.00075989,120]
[354373644,1740461445782,-587.51,0.00075989,120]
[354373645,1740461445792,-500.0,0.00075989,120]
[354373646,1740461445802,-918.44,0.00075989,3]
[354373647,1740461445811,-1996.48,0.00075989,120]
[354373648,1740461445821,-500.0,0.00075989,120]
[354373649,1740461445830,-500.0,0.00075989,120]
[354373650,1740461445839,-500.0,0.00075989,120]
[354373651,1740461445849,-500.0,0.00075989,120]
[354373652,1740461445858,-500.0,0.00075989,120]
[354373653,1740461445868,-1160.32,0.00075989,120]
[354373654,1740461445878,-500.0,0.00075989,120]
[354373656,1740461445887,-500.0,0.00075999,120]
[354373658,1740461445898,-500.0,0.00075999,120]
[354373659,1740461445907,-500.0,0.00075999,120]
[354373660,1740461445917,-500.0,0.00075999,120]
[354373661,1740461445928,-500.0,0.00075999,120]
[354373662,1740461445937,-500.0,0.00075999,120]
[354373663,1740461445946,-600.0,0.00075999,120]
[354373664,1740461445956,-600.0,0.00075999,120]
[354373665,1740461445966,-600.0,0.00075999,120]
[354373666,1740461445975,-500.0,0.00075999,120]
[354373667,1740461445985,-500.0,0.00075999,120]
[354373668,1740461445994,-500.0,0.00075999,120]
[354373669,1740461446004,-500.0,0.00075999,120]
[354373670,1740461446013,-500.0,0.00075999,120]
[354373671,1740461446024,-500.0,0.00075999,120]
[354373672,1740461446033,-500.0,0.00075999,120]
[354373673,1740461446042,-500.0,0.00075999,120]
[354373674,1740461446052,-500.0,0.00075999,120]
[354373675,1740461446062,-500.0,0.00075999,120]
[354373676,1740461446071,-500.0,0.00075999,120]
[354373677,1740461446082,-500.0,0.00075999,120]
[354373678,1740461446092,-500.0,0.00075999,120]
[354373679,1740461446103,-400.05362318,0.00075999,120]
[354373680,1740461446113,-500.0,0.00075999,120]
[354373681,1740461446124,-500.0,0.00075999,120]
[354373682,1740461446142,-500.0,0.00075999,120]
[354373684,1740461446152,-500.0,0.00075999,120]
[354373685,1740461446162,-500.0,0.00075999,120]
[354373687,1740461446174,-500.0,0.00075999,120]
[354373688,1740461446184,-500.0,0.00075999,120]
[354373689,1740461446193,-500.0,0.00075999,120]
[354373690,1740461446203,-373.42720628,0.00075999,120]
[354373691,1740461446220,-126.57279372,0.00075999,120]
[354373692,1740461446230,-794.42720628,0.00075999,120]
[354373693,1740461654643,-150.0,0.000165,6]
[354373694,1740461660752,-150.0,0.000165,6]
[354373695,1740461663335,-5.182857,0.000165,6]
[354373699,1740462431117,-300.0,0.00027999,2]
[354373700,1740462431140,-2056.56270014,0.00028,3]
[354373701,1740462431162,-2056.56270014,0.00028,3]
[354373702,1740462431183,-2056.56270014,0.00029,10]
[354373703,1740462431205,-2056.56270014,0.00029,10]
[354373704,1740462431226,-2056.56270014,0.00029,10]
[354373705,1740462431247,-456.86686307,0.000299,5]
[354373707,1740462611305,767.0,0.00019,120]
[354373719,1740462632840,-732.28397462,0.00022,2]
[354373720,1740462632851,-6547.6145896,0.000299,60]
[354373721,1740462632861,-2179.0,0.0003,20]
[354373722,1740462632870,-2179.0,0.0003,20]
[354373723,1740462632880,-2179.0,0.0003,20]
[354373724,1740462632890,-2179.0,0.0003,20]
[354373725,1740462632900,-2179.0,0.0003,20]
[354373726,1740462632910,-2179.0,0.0003,20]
[354373727,1740462632922,-200.0,0.0003,30]
[354373728,1740462632932,-500.0,0.00032,10]
[354373729,1740462632942,-151.15,0.00035239,2]
[354373731,1740462632952,-247.5,0.00035239,30]
[354373733,1740462632961,-334.5,0.00035239,30]
[354373735,1740462632971,-500.0,0.00038296,60]
[354373736,1740462632980,-500.0,0.00038296,60]
[354373738,1740462632990,-6547.61458958,0.00044003,120]
[354373740,1740462632998,-252.2322326,0.00049188,2]
[354373742,1740462633012,-534.330683,0.00049608,2]
[354373743,1740462633023,-4043.87233986,0.0005027,2]
[354373775,1740462638675,-20856.12766014,0.0005027,2]
[354373776,1740462638685,-300.0,0.00058,120]
[354373777,1740462638695,-6547.61458958,0.00058105,120]
[354373778,1740462638704,-500000.0,0.00068,120]
[354373779,1740462638714,-188616.28359192,0.000682,120]
[354373866,1740462640932,-3500.0,0.000682,120]
[354373875,1740462643745,-557.50981433,0.000682,120]
[354373909,1740462646818,-795.61375639,0.000682,120]
[354373923,1740463647152,-305.182857,0.000165,6]
[354373924,1740463647175,-300.0,0.00016664,2]
[354373925,1740463647197,-2308.0,0.00016665,2]
[354373926,1740463647218,-2306.0,0.00016665,2]
[354373927,1740463647239,-2306.0,0.00016665,2]
[354373928,1740463647259,-1472.9761596,0.00016665,2]
[354373929,1740463653083,-753.984,0.00016665,2]
[354373930,1740463796117,15000.0,0.00034685,60]
[354373943,1740463831864,-150.0,0.00035239,60]
[354373944,1740463831874,-300.0,0.00044459,5]
[354373946,1740463831883,-14028.7340784,0.0004446,2]
[354373948,1740463831893,-3910.13317597,0.000615,60]
[354373950,1740463832060,-812.85,0.000615,60]
[354373959,1740463837767,-677.01682403,0.000615,60]
[354373960,1740463837777,-2373.09008574,0.000618,120]
[354373961,1740463837789,-489.92427305,0.000618,120]